bitfinex-derivatives/quotes_BTCF0:USTF0_20250417
["timestamp","ask_amount","ask_price","bid_price","bid_amount"]
[1744916026758,0.3009389,85230.0,85229.0,0.11544338]
[1744916028267,0.3009389,85230.0,85229.0,0.17404338]
[1744916028464,0.0604,85230.0,85229.0,0.17404338]
[1744916028660,0.0604,85230.0,85229.0,0.23594338]
[1744916029761,0.1173309,85236.0,85235.0,0.1759966]
[1744916029955,0.17616933,85238.0,85237.0,0.1173293]
[1744916030667,0.17616933,85238.0,85237.0,0.1782293]
[1744916031070,0.17616933,85238.0,85237.0,0.2371293]
[1744916031770,0.53696933,85238.0,85237.0,0.2371293]
[1744916032073,0.53696933,85238.0,85237.0,0.1173293]
[1744916033060,0.59956933,85238.0,85237.0,0.1173293]
[1744916033266,0.59956933,85238.0,85237.0,0.1123293]
[1744916036565,0.59452472,85238.0,85237.0,0.1123293]
[1744916037671,0.1173307,85236.0,85235.0,0.1173308]
[1744916038066,0.1796307,85236.0,85235.0,0.1173308]
[1744916038278,0.2415307,85236.0,85235.0,0.1173308]
[1744916039274,0.3001961,85236.0,85235.0,0.1173308]
[1744916039877,0.3001961,85236.0,85235.0,0.1726308]
[1744916043068,0.0619,85236.0,85235.0,0.1726308]
[1744916043272,0.00010801,85241.0,85240.0,0.1173251]
[1744916043776,0.2664913,85242.0,85241.0,0.1173238]
[1744916043977,0.1491689,85242.0,85241.0,0.1173238]
[1744916044179,0.1491689,85242.0,85241.0,0.2339238]
[1744916044882,0.1492489,85242.0,85241.0,0.2339238]
[1744916045676,0.1491689,85242.0,85241.0,0.2339238]
[1744916046182,0.1492489,85242.0,85241.0,0.2339238]
[1744916046382,0.1492489,85242.0,85241.0,0.2289238]
[1744916047375,8e-05,85242.0,85241.0,0.2289238]
[1744916047574,0.00014581,85256.0,85255.0,0.1173045]
[1744916047877,0.1491689,85260.0,85259.0,0.117299]
[1744916048072,0.2664665,85260.0,85259.0,0.117299]
[1744916048284,0.2664665,85260.0,85252.0,0.0586543]
[1744916048285,0.0586495,85259.0,85252.0,0.0586543]
[1744916048478,0.11731,85253.0,85252.0,0.2346105]
[1744916048783,0.1212505,85258.0,85257.0,0.1173018]
[1744916048975,0.1759519,85258.0,85257.0,0.1173018]
[1744916049374,0.1491689,85260.0,85259.0,0.117299]
[1744916050081,0.1491689,85260.0,85259.0,0.175499]
[1744916050382,0.1172954,85262.0,85261.0,0.1172962]
[1744916050584,0.26656831,85267.0,85266.0,0.1172894]
[1744916050888,0.117299,85260.0,85259.0,0.0586491]
[1744916051178,0.058646,85264.0,85261.0,0.0586476]
[1744916051387,0.058646,85264.0,85263.0,0.1172935]
[1744916052388,0.1172895,85266.0,85265.0,0.1172894]
[1744916055784,0.4780895,85266.0,85265.0,0.1172894]
[1744916055990,0.1759518,85259.0,85258.0,0.1172996]
[1744916056286,0.1173045,85256.0,85255.0,0.1173037]
[1744916056677,0.1173141,85248.0,85247.0,0.00017598]
[1744916057185,0.1203141,85248.0,85247.0,0.00017598]
[1744916060084,0.16880606,85248.0,85247.0,0.00017598]
[1744916060779,0.22990606,85248.0,85247.0,0.00017598]
[1744916062987,0.29030606,85248.0,85247.0,0.00017598]
[1744916063293,0.1173251,85240.0,85239.0,0.00504461]
[1744916063489,0.4781251,85240.0,85239.0,0.12237111]
[1744916069204,0.6012251,85240.0,85239.0,0.18267111]
[1744916074702,0.6012251,85240.0,85239.0,0.06534461]
[1744916074903,0.0586682,85232.0,85221.0,0.3608]
[1744916075103,0.1173499,85224.0,85223.0,0.1207742]
[1744916075302,0.4781499,85224.0,85223.0,0.1207742]
[1744916075609,0.6031499,85224.0,85223.0,0.1207742]
[1744916076110,0.1808499,85224.0,85223.0,0.1207742]
[1744916076307,0.1808499,85224.0,85223.0,0.1790742]
[1744916076702,0.5416499,85224.0,85223.0,0.1790742]
[1744916077713,0.5416499,85224.0,85223.0,0.1740742]
[1744916078409,0.6044499,85224.0,85223.0,0.1740742]
[1744916079003,0.6044499,85224.0,85223.0,0.2377486]
[1744916081203,0.59940529,85224.0,85223.0,0.1204]
[1744916081608,0.59940529,85224.0,85223.0,0.2377486]
[1744916082908,0.53660529,85224.0,85223.0,0.2377486]
[1744916084105,0.11230529,85224.0,85223.0,0.2377486]
[1744916084511,0.47310529,85224.0,85223.0,0.2327486]
[1744916084812,0.53480529,85224.0,85223.0,0.2327486]
[1744916085718,0.53480529,85224.0,85223.0,0.1154]
[1744916085918,0.53480529,85224.0,85223.0,0.2327486]
[1744916086214,0.59560529,85224.0,85223.0,0.2327486]
[1744916086416,0.59560529,85224.0,85223.0,0.1154]
[1744916086801,0.59560529,85224.0,85223.0,0.0571]
[1744916087510,0.1173527,85220.0,85219.0,0.0606]
[1744916087716,0.4781527,85220.0,85219.0,0.0606]
[1744916088018,0.1173582,85216.0,85215.0,0.00017598]
[1744916088807,0.1798582,85216.0,85215.0,0.00017598]
[1744916089419,0.1798582,85216.0,85215.0,0.11857598]
[1744916089917,0.2405582,85216.0,85215.0,0.11857598]
[1744916090822,0.2405582,85216.0,85215.0,0.23593558]
[1744916091119,0.1798582,85216.0,85215.0,0.11357598]
[1744916093504,0.2414582,85216.0,85215.0,0.11357598]
[1744916093703,0.2414582,85216.0,85215.0,0.05657598]
[1744916094111,0.1173609,85214.0,85213.0,4.615e-05]
[1744916094514,0.23201629,85214.0,85213.0,4.615e-05]
[1744916094714,0.23201629,85214.0,85213.0,0.05924615]
[1744916094916,0.23201629,85214.0,85213.0,0.11634615]
[1744916097411,0.23201629,85214.0,85213.0,4.615e-05]
[1744916097617,0.1173692,85208.0,85207.0,0.00017598]
[1744916097816,0.1173747,85204.0,85203.0,0.05657598]
[1744916098018,0.4781747,85204.0,85203.0,0.05657598]
[1744916098325,0.6023747,85204.0,85203.0,0.05657598]
[1744916098921,0.1173816,85199.0,85198.0,0.0577]
[1744916099215,0.1173857,85196.0,85195.0,0.00017598]
[1744916099413,0.4781857,85196.0,85195.0,0.11756308]
[1744916099612,0.6023857,85196.0,85195.0,0.11756308]
[1744916099919,0.5405857,85196.0,85195.0,0.11756308]
[1744916101018,0.5405857,85196.0,85195.0,0.17316308]
[1744916101217,0.1797857,85196.0,85195.0,0.17316308]
[1744916101525,0.5405857,85196.0,85195.0,0.17316308]
[1744916102716,0.1173913,85192.0,85191.0,0.01691]
[1744916103112,0.1750913,85192.0,85191.0,0.01691]
[1744916103321,0.1173913,85192.0,85191.0,0.01691]
[1744916103916,0.2316913,85192.0,85191.0,0.01691]
[1744916104120,0.2893913,85192.0,85191.0,0.01691]
[1744916104513,0.28434515,85192.0,85191.0,0.01691]
[1744916105029,0.117394,85190.0,85189.0,0.0568]
[1744916105217,0.1173968,85188.0,85187.0,0.00530367]
[1744916105830,0.1750968,85188.0,85187.0,0.00530367]
[1744916106125,0.2359968,85188.0,85187.0,0.00530367]
[1744916107214,0.2359968,85188.0,85156.0,0.1790886]
[1744916107215,0.1174119,85177.0,85176.0,0.0581]
[1744916107419,0.117423,85169.0,85168.0,0.05878427]
[1744916107612,0.117423,85169.0,85168.0,0.0583]
[1744916107811,0.178323,85169.0,85168.0,0.05338]
[1744916108017,0.178323,85169.0,85168.0,8e-05]
[1744916108210,0.238023,85169.0,85168.0,8e-05]
[1744916108421,0.598823,85169.0,85168.0,0.1175043]
[1744916109120,0.178323,85169.0,85168.0,0.1175043]
[1744916109718,0.00885126,85174.0,85172.0,0.0587094]
[1744916109920,0.06755926,85174.0,85173.0,0.1174174]
[1744916110220,0.058788,85174.0,85173.0,0.1174174]
[1744916110418,0.1762054,85174.0,85173.0,0.1174174]
[1744916110620,0.1762054,85174.0,85173.0,0.1786174]
[1744916110818,0.1762054,85174.0,85173.0,0.2369174]
[1744916111224,0.17115771,85174.0,85173.0,0.2940174]
[1744916111521,0.16611156,85174.0,85173.0,0.2940174]
[1744916114816,0.16611156,85174.0,85173.0,0.1716]
[1744916115218,0.16611156,85174.0,85173.0,0.2890174]
[1744916118220,0.16106387,85174.0,85173.0,0.2890174]
[1744916118415,0.15601772,85174.0,85173.0,0.2890174]
[1744916120027,8e-05,85174.0,85173.0,0.2890174]
[1744916120217,0.00017609,85177.0,85176.0,0.1174133]
[1744916120418,0.00017609,85177.0,85176.0,0.2373133]
[1744916121521,0.00025609,85177.0,85176.0,0.2373133]
[1744916121722,0.00017609,85177.0,85176.0,0.2373133]
[1744916121922,0.17619921,85190.0,85189.0,0.1123954]
[1744916122123,0.1760912,85190.0,85189.0,0.2302954]
[1744916122520,0.1761712,85190.0,85189.0,0.2302954]
[1744916122919,8e-05,85190.0,85189.0,0.2302954]
[1744916124817,0.117474,85190.0,85189.0,0.2302954]
[1744916125231,8e-05,85190.0,85189.0,0.2302954]
[1744916125428,0.17112165,85192.0,85191.0,0.1173926]
[1744916125626,0.22842165,85192.0,85191.0,0.1173926]
[1744916125825,0.14851842,85203.0,85197.0,0.1173844]
[1744916126020,0.1173809,85200.0,85197.0,0.1173844]
[1744916126219,0.1173827,85199.0,85197.0,0.1773844]
[1744916126521,0.00025609,85198.0,85197.0,0.1773844]
[1744916127625,0.00017609,85198.0,85197.0,0.1773844]
[1744916127920,0.00025609,85198.0,85197.0,0.1773844]
[1744916128925,0.00025609,85198.0,85197.0,0.1723844]
[1744916130122,0.05855609,85198.0,85197.0,0.1723844]
[1744916131723,0.17593909,85198.0,85197.0,0.1123844]
[1744916132033,0.1173871,85196.0,85195.0,0.117387]
[1744916132334,0.17103385,85196.0,85195.0,0.117387]
[1744916132635,0.0586929,85196.0,85195.0,0.117387]
[1744916132828,0.0586929,85196.0,85195.0,0.176087]
[1744916133430,0.1747929,85196.0,85195.0,0.176087]
[1744916135527,0.1747929,85196.0,85195.0,0.171087]
[1744916136524,0.17612525,85196.0,85195.0,0.171087]
[1744916136724,0.11743235,85196.0,85195.0,0.171087]
[1744916136931,0.05823235,85196.0,85195.0,0.171087]
[1744916137124,0.05831235,85196.0,85195.0,0.286587]
[1744916138833,0.0532662,85196.0,85195.0,0.286587]
[1744916139228,0.1706519,85196.0,85195.0,0.286587]
[1744916139434,0.1706519,85196.0,85195.0,0.228387]
[1744916141034,0.16931955,85196.0,85195.0,0.228387]
[1744916141639,0.16923955,85196.0,85195.0,0.228387]
[1744916141941,0.05185385,85196.0,85195.0,0.228387]
[1744916142238,0.0531862,85196.0,85195.0,0.223387]
[1744916143234,0.00010801,85205.0,85204.0,0.1173747]
[1744916143741,0.0586853,85207.0,85206.0,0.1760544]
[1744916144738,0.0586819,85212.0,85208.0,0.1173692]
[1744916144929,0.08911842,85214.0,85213.0,0.1173623]
[1744916145140,0.14791842,85214.0,85213.0,0.1173623]
[1744916145338,0.14791842,85214.0,85213.0,0.12240845]
[1744916145945,0.14799842,85214.0,85213.0,0.12240845]
[1744916146444,0.05888,85214.0,85213.0,0.12240845]
[1744916146643,0.1762409,85214.0,85213.0,0.12240845]
[1744916147148,0.2357409,85214.0,85213.0,0.12240845]
[1744916148439,0.2935409,85214.0,85213.0,0.12240845]
[1744916153445,0.17618,85214.0,85213.0,0.12240845]
[1744916154945,0.05788,85214.0,85213.0,0.12240845]
[1744916155547,0.11568,85214.0,85213.0,0.12240845]
[1744916155848,8e-05,85214.0,85213.0,0.12240845]
[1744916156043,0.14880501,85224.0,85223.0,0.1173486]
[1744916156447,0.32403221,85224.0,85223.0,0.1173486]
[1744916157343,0.1760242,85223.0,85222.0,0.1173495]
[1744916159348,0.2365242,85223.0,85222.0,0.1173495]
[1744916161652,0.1778486,85223.0,85222.0,0.1173495]
[1744916161849,0.1778486,85223.0,85222.0,0.1767495]
[1744916162153,0.1778486,85223.0,85222.0,0.1173495]
[1744916162353,0.2403486,85223.0,85222.0,0.1173495]
[1744916163345,0.2403486,85223.0,85222.0,0.1792495]
[1744916164650,0.2403486,85223.0,85222.0,0.2357495]
[1744916164846,0.2403486,85223.0,85222.0,0.1792495]
[1744916170565,0.0605,85223.0,85222.0,0.1792495]
[1744916170856,0.0605,85223.0,85222.0,0.2405495]
[1744916171257,0.06058,85223.0,85222.0,0.2405495]
[1744916171464,0.12148,85223.0,85222.0,0.2405495]
[1744916171662,0.2388286,85223.0,85222.0,0.2405495]
[1744916174563,0.12148,85223.0,85222.0,0.2405495]
[1744916174765,0.22642837,85223.0,85222.0,0.2405495]
[1744916174965,0.10907977,85223.0,85222.0,0.2405495]
[1744916175765,0.22642837,85223.0,85222.0,0.2405495]
[1744916175967,0.04857977,85223.0,85222.0,0.2405495]
[1744916176469,0.16592837,85223.0,85222.0,0.2405495]
[1744916176660,0.22442837,85223.0,85222.0,0.2405495]
[1744916177459,0.28302837,85223.0,85222.0,0.2405495]
[1744916178871,0.2345286,85223.0,85222.0,0.2405495]
[1744916179075,0.11718,85223.0,85222.0,0.2405495]
[1744916179262,0.05858,85223.0,85222.0,0.2405495]
[1744916179866,0.1759286,85223.0,85222.0,0.2405495]
[1744916180269,0.2327286,85223.0,85222.0,0.2405495]
[1744916180465,0.2327286,85223.0,85222.0,0.1792495]
[1744916180862,0.2327286,85223.0,85222.0,0.0619]
[1744916181775,0.2327286,85223.0,85222.0,0.1792499]
[1744916182171,0.1760387,85216.0,85214.0,0.4412]
[1744916182371,0.2948596,85215.0,85214.0,0.3608]
[1744916183076,0.2948596,85215.0,85214.0,0.1173609]
[1744916183271,0.1173609,85214.0,85213.0,0.00504615]
[1744916183673,0.2365609,85214.0,85213.0,0.00504615]
[1744916184068,0.2365609,85214.0,85213.0,0.12240845]
[1744916184565,0.2365609,85214.0,85213.0,0.00504615]
[1744916184761,0.2365609,85214.0,85213.0,0.12240845]
[1744916185070,0.2365609,85214.0,85207.0,0.0586851]
[1744916185071,0.1760573,85208.0,85207.0,0.0586851]
[1744916185274,0.058686,85206.0,85200.0,0.1790886]
[1744916185575,0.4781789,85201.0,85200.0,0.2964688]
[1744916186177,0.4781789,85201.0,85200.0,0.2914688]
[1744916186678,0.5928789,85201.0,85200.0,0.1173802]
[1744916188364,0.058,85201.0,85200.0,0.1173802]
[1744916188571,0.1173737,85205.0,85204.0,0.1173747]
[1744916189379,0.11232755,85205.0,85204.0,0.1779747]
[1744916189586,0.23132755,85205.0,85204.0,0.1779747]
[1744916192175,0.11232755,85205.0,85204.0,0.1779747]
[1744916192570,0.11232755,85205.0,85204.0,0.1729747]
[1744916192865,0.17422755,85205.0,85204.0,0.1729747]
[1744916193472,0.23472755,85205.0,85204.0,0.1729747]
[1744916195568,0.23472755,85205.0,85204.0,0.1123747]
[1744916195768,0.2296814,85205.0,85204.0,0.1123747]
[1744916196679,0.2296814,85205.0,85204.0,0.1699747]
[1744916198376,0.2296814,85205.0,85204.0,0.1123747]
[1744916199169,0.2296814,85205.0,85204.0,0.1073747]
[1744916199581,0.2883681,85205.0,85204.0,0.1173733]
[1744916201680,0.1760635,85204.0,85203.0,0.117376]
[1744916202081,0.2948635,85204.0,85203.0,0.117376]
[1744916202385,0.65061735,85204.0,85203.0,0.117376]
[1744916203175,0.65061735,85204.0,85203.0,0.179376]
[1744916205281,0.65061735,85204.0,85203.0,0.236576]
[1744916205683,0.65061735,85204.0,85203.0,0.231576]
[1744916208985,0.6455712,85204.0,85203.0,0.231576]
[1744916211681,0.6455712,85204.0,85203.0,0.062]
[1744916211893,0.1173816,85199.0,85198.0,0.00017609]
[1744916212093,0.1173816,85199.0,85198.0,0.06257609]
[1744916212296,0.3006816,85199.0,85198.0,0.17495909]
[1744916213395,0.1778816,85199.0,85198.0,0.23775909]
[1744916214889,0.1173816,85199.0,85198.0,0.23775909]
[1744916215496,0.11233545,85199.0,85198.0,0.23775909]
[1744916217798,0.17213545,85199.0,85198.0,0.23775909]
[1744916217999,0.22973545,85199.0,85198.0,0.23775909]
[1744916218899,0.22973545,85199.0,85198.0,0.23275909]
[1744916219500,0.17213545,85199.0,85198.0,0.23275909]
[1744916219904,0.0586891,85202.0,85198.0,0.11537609]
[1744916220090,0.1760703,85202.0,85198.0,0.11537609]
[1744916220399,0.1173802,85200.0,85199.0,0.0586908]
[1744916220800,0.1173802,85200.0,85199.0,0.1175908]
[1744916221102,0.1785802,85200.0,85199.0,0.1175908]
[1744916221302,0.2381802,85200.0,85199.0,0.1175908]
[1744916221600,0.2381802,85200.0,85199.0,0.1762816]
[1744916221802,0.2381802,85200.0,85199.0,0.1173816]
[1744916221994,0.2973802,85200.0,85199.0,0.1173816]
[1744916222194,0.29233405,85200.0,85199.0,0.1766816]
[1744916225404,0.29233405,85200.0,85199.0,0.2291816]
[1744916225804,0.29233405,85200.0,85199.0,0.1716816]
[1744916226101,0.0586956,85192.0,85190.0,0.00017609]
[1744916226400,0.6620926,85191.0,85190.0,0.00017609]
[1744916226794,0.67443744,85191.0,85190.0,0.00017609]
[1744916226996,0.1173968,85188.0,85187.0,0.00987588]
[1744916227198,0.4781968,85188.0,85187.0,0.00979588]
[1744916227392,0.6002968,85188.0,85187.0,0.00979588]
[1744916227590,0.6002968,85188.0,85187.0,0.00987588]
[1744916227790,0.6002968,85188.0,85187.0,0.00979588]
[1744916227996,0.6002968,85188.0,85187.0,0.00987588]
[1744916228300,0.6002968,85188.0,85187.0,0.12727398]
[1744916228800,0.59525065,85188.0,85187.0,0.12727398]
[1744916229802,0.60424411,85188.0,85187.0,0.12727398]
[1744916231403,0.60424411,85188.0,85187.0,0.00987588]
[1744916231999,0.60424411,85188.0,85187.0,0.00487588]
[1744916233101,0.60724411,85188.0,85187.0,0.00487588]
[1744916233606,0.1174064,85181.0,85180.0,0.0001458]
[1744916233806,0.4782064,85181.0,85180.0,0.1175536]
[1744916234105,0.1174078,85180.0,85179.0,0.00017609]
[1744916234305,0.1174078,85180.0,85174.0,0.000108]
[1744916234306,0.1743,85180.0,85174.0,0.000108]
[1744916234505,0.1174202,85171.0,85170.0,0.0001458]
[1744916234804,0.4782202,85171.0,85170.0,0.0001458]
[1744916235210,0.1174216,85170.0,85169.0,0.1124221]
[1744916235405,0.1174312,85163.0,85162.0,0.00011767]
[1744916235709,0.1174381,85158.0,85157.0,0.2961722]
[1744916236309,0.1174381,85158.0,85157.0,0.3535722]
[1744916238100,0.1761548,85160.0,85159.0,0.1174367]
[1744916238801,0.17110865,85160.0,85159.0,0.1124367]
[1744916239004,0.17110865,85160.0,85159.0,0.1074367]
[1744916239402,0.419516,85163.0,85162.0,0.1174326]
[1744916239403,0.3608,85163.0,85162.0,0.1174326]
[1744916239803,0.00017609,85166.0,85164.0,0.1174285]
[1744916240005,0.00017609,85166.0,85165.0,0.2363285]
[1744916240211,0.11760319,85166.0,85165.0,0.2363285]
[1744916241804,0.17800319,85166.0,85165.0,0.2363285]
[1744916242408,0.53375858,85166.0,85165.0,0.0531]
[1744916242612,0.58661551,85166.0,85165.0,0.1706085]
[1744916243106,0.58661551,85166.0,85165.0,0.1705285]
[1744916243309,0.58661551,85166.0,85165.0,0.1706085]
[1744916244711,0.52871551,85166.0,85165.0,0.1706085]
[1744916245207,0.52871551,85166.0,85165.0,0.11138]
[1744916245411,0.58811551,85166.0,85165.0,0.11138]
[1744916246011,0.52367398,85166.0,85165.0,0.10638]
[1744916246310,0.52367398,85166.0,85165.0,0.10138]
[1744916247005,0.0587149,85165.0,85152.0,0.00026572]
[1744916247208,0.1174436,85154.0,85153.0,0.0585]
[1744916247608,0.117445,85153.0,85152.0,0.01476572]
[1744916247809,0.177945,85153.0,85152.0,0.01476572]
[1744916248013,0.233945,85153.0,85152.0,0.01476572]
[1744916249612,0.228905,85153.0,85152.0,0.00976572]
[1744916249914,0.22386654,85153.0,85152.0,0.00976572]
[1744916250110,0.28266654,85153.0,85152.0,0.00976572]
[1744916250702,0.3608,85156.0,85152.0,0.00976572]
[1744916250903,0.1174436,85154.0,85153.0,0.0619]
[1744916252513,0.1773436,85154.0,85153.0,0.0619]
[1744916253015,0.1773436,85154.0,85153.0,0.117]
[1744916253313,0.17230667,85154.0,85153.0,0.117]
[1744916253511,0.17230667,85154.0,85153.0,0.112]
[1744916255924,0.1174505,85149.0,85148.0,0.000108]
[1744916256110,0.4782505,85149.0,85148.0,0.000108]
[1744916256414,0.6505505,85149.0,85148.0,0.000108]
[1744916256810,0.64551511,85149.0,85148.0,0.000108]
[1744916257006,0.11241804,85148.0,85147.0,0.053608]
[1744916257413,0.16971804,85148.0,85147.0,0.053608]
[1744916259207,0.16971804,85148.0,85147.0,0.112708]
[1744916259618,0.16971804,85148.0,85147.0,0.0591]
[1744916259818,0.23001804,85148.0,85147.0,0.0591]
[1744916260619,0.23001804,85148.0,85147.0,0.0541]
[1744916260620,0.22498571,85148.0,85147.0,0.0541]
[1744916260825,0.22498571,85148.0,85147.0,0.0491]
[1744916264115,0.21995491,85148.0,85147.0,0.0491]
[1744916264308,0.21995491,85148.0,85147.0,0.0441]
[1744916264512,0.21492564,85148.0,85147.0,0.0441]
[1744916267614,0.21492564,85148.0,85147.0,0.0391]
[1744916267815,0.2098979,85148.0,85147.0,0.0391]
[1744916268017,0.2098979,85148.0,85147.0,0.0341]
[1744916269125,0.1174533,85147.0,85146.0,0.00060835]
[1744916269524,0.2321533,85147.0,85146.0,0.00060835]
[1744916271219,0.1174643,85139.0,85138.0,0.0573]
[1744916271419,0.1174643,85139.0,85138.0,0.11836255]
[1744916271420,0.47323809,85139.0,85138.0,0.11836255]
[1744916271619,0.6464134,85139.0,85138.0,0.11336255]
[1744916271928,0.2856134,85139.0,85138.0,0.11336255]
[1744916274925,0.2856134,85139.0,85138.0,0.10836255]
[1744916275122,0.28059024,85139.0,85138.0,0.10836255]
[1744916275323,0.28059024,85139.0,85138.0,0.10336255]
[1744916278531,0.27556861,85139.0,85138.0,0.10336255]
[1744916278728,0.27556861,85139.0,78100.0,0.03]
[1744916278729,0.0587374,85132.0,85117.0,0.08036]
[1744916279031,0.22725609,85131.0,85129.0,0.0579]
[1744916279233,0.17057989,85131.0,85130.0,0.0569]
[1744916279627,0.28805529,85131.0,85130.0,0.0569]
[1744916280420,0.0573,85131.0,85130.0,0.1743767]
[1744916282334,0.0573,85131.0,85130.0,0.1693767]
[1744916282526,0.05228141,85131.0,85130.0,0.1643767]
[1744916282831,0.05228141,85131.0,85130.0,0.1593767]
[1744916286021,0.04726435,85131.0,85130.0,0.1593767]
[1744916286221,0.04224881,85131.0,85130.0,0.1593767]
[1744916286528,0.03723479,85131.0,85130.0,0.1543767]
[1744916286735,0.03723479,85131.0,85130.0,0.2111767]
[1744916290123,0.09493479,85131.0,85130.0,0.2011767]
[1744916290324,0.03222229,85131.0,85130.0,0.2011767]
[1744916290538,0.03222229,85131.0,85130.0,0.1961767]
[1744916291136,0.00017619,85134.0,85133.0,0.1174726]
[1744916291435,0.00017619,85134.0,85133.0,0.1374726]
[1744916291633,0.00017619,85134.0,85133.0,0.1964726]
[1744916292731,0.0574,85140.0,85139.0,0.1174643]
[1744916293131,0.0574,85140.0,85139.0,0.2379643]
[1744916293937,0.04737955,85140.0,85139.0,0.2986643]
[1744916294239,0.0423716,85140.0,85139.0,0.2936643]
[1744916295831,0.0423716,85140.0,85139.0,0.30543204]
[1744916296737,0.0423716,85140.0,85139.0,0.2936643]
[1744916297041,0.0423716,85140.0,85139.0,0.3036643]
[1744916297641,0.0423716,85140.0,85139.0,0.2986643]
[1744916297841,0.03736517,85140.0,85139.0,0.2936643]
[1744916298141,0.03736517,85140.0,85139.0,0.2886643]
[1744916299129,0.03736517,85140.0,85139.0,0.3009292]
[1744916299335,0.03736517,85140.0,85139.0,0.2886643]
[1744916301235,0.03736517,85140.0,85139.0,0.2271643]
[1744916301448,0.11177127,85152.0,85151.0,0.1174478]
[1744916301743,0.10676787,85152.0,85151.0,0.1124478]
[1744916302044,0.00014581,85157.0,85152.0,0.1174464]
[1744916302245,0.0576,85156.0,85155.0,0.1174423]
[1744916302448,0.0576,85156.0,85155.0,0.1769423]
[1744916302648,0.0576,85156.0,85155.0,0.2345423]
[1744916302945,0.05768,85156.0,85155.0,0.1174423]
[1744916303146,0.05768,85156.0,85155.0,0.1175223]
[1744916303735,0.0576,85156.0,85155.0,0.1175223]
[1744916303949,0.05768,85156.0,85155.0,0.1175223]
[1744916305147,0.05768,85156.0,85155.0,0.1125223]
[1744916305347,0.05768,85156.0,85155.0,0.1075223]
[1744916305549,0.11557962,85156.0,85155.0,0.1075223]
[1744916305846,0.11557962,85156.0,85155.0,0.1025223]
[1744916308139,0.29092052,85156.0,85155.0,8e-05]
[1744916308340,0.1174464,85152.0,85151.0,0.1174471]
[1744916308741,0.2335464,85152.0,85151.0,0.1174471]
[1744916309244,0.22355017,85152.0,85151.0,0.1174471]
[1744916309447,0.22355017,85152.0,85151.0,0.1124471]
[1744916309743,0.21855432,85152.0,85151.0,0.1125271]
[1744916310340,0.57935432,85152.0,85151.0,0.1125271]
[1744916310543,0.57935432,85152.0,85151.0,8e-05]
[1744916310750,0.57935432,85152.0,85147.0,0.00017619]
[1744916310751,0.1174519,85148.0,85147.0,0.00017619]
[1744916311050,0.1174519,85148.0,85147.0,0.11762949]
[1744916311248,0.30569302,85148.0,85147.0,0.11762949]
[1744916312042,0.2933519,85148.0,85147.0,0.11770949]
[1744916312951,0.2933519,85148.0,85147.0,0.10770949]
[1744916313146,0.28835756,85148.0,85147.0,0.10770949]
[1744916313448,0.28835756,85148.0,85147.0,0.10270949]
[1744916315850,0.22985756,85148.0,85147.0,0.10270949]
[1744916316553,0.22486473,85148.0,85147.0,0.10270949]
[1744916316755,0.21987341,85148.0,85147.0,0.10270949]
[1744916316944,0.21987341,85148.0,85147.0,0.09770949]
[1744916317143,0.21488359,85148.0,85147.0,0.09770949]
[1744916317344,0.57568359,85148.0,85147.0,0.09770949]
[1744916318658,0.21488359,85148.0,85147.0,0.09770949]
[1744916320543,0.21488359,85148.0,85147.0,0.09270949]
[1744916320745,0.21488359,85148.0,85147.0,0.08770949]
[1744916320940,0.20989528,85148.0,85147.0,0.08270949]
[1744916322043,0.1174,85148.0,85147.0,0.08270949]
[1744916323054,0.2348519,85148.0,85147.0,0.08270949]
[1744916323555,0.2348519,85148.0,85147.0,8e-05]
[1744916323754,0.1761937,85143.0,85142.0,0.1761902]
[1744916324354,0.22993769,85143.0,85142.0,0.1761902]
[1744916324550,0.58575239,85143.0,85142.0,0.1711902]
[1744916324744,0.58076859,85143.0,85142.0,0.1711902]
[1744916324945,0.58076859,85143.0,85142.0,8e-05]
[1744916325350,0.1174629,85140.0,85139.0,0.00017619]
[1744916325856,0.2376629,85140.0,85139.0,0.00017619]
[1744916326049,0.2980629,85140.0,85139.0,0.00017619]
[1744916326250,0.2980629,85140.0,85139.0,0.11764049]
[1744916327152,0.3567944,85140.0,85138.0,0.0587328]
[1744916327457,0.3567944,85140.0,85139.0,0.1174643]
[1744916328155,0.3567944,85140.0,85138.0,0.0587328]
[1744916328354,0.3518121,85140.0,85139.0,0.1174643]
[1744916328656,0.3518121,85140.0,85139.0,0.1124643]
[1744916330748,0.1174712,85134.0,85133.0,0.000108]
[1744916330960,0.058735,85135.0,85129.0,1e-08]
[1744916330961,0.1174767,85130.0,85129.0,1e-08]
[1744916331164,0.0587381,85131.0,85116.0,0.08032]
[1744916331365,0.1762297,85126.0,85125.0,0.1762199]
[1744916331565,0.0587424,85126.0,85125.0,0.1762199]
[1744916331772,0.1821,85129.0,85128.0,0.1174795]
[1744916331970,0.2349973,85129.0,85128.0,0.1174795]
[1744916332158,0.230018,85129.0,85128.0,0.1801795]
[1744916332365,0.2250402,85129.0,85128.0,0.2320795]
[1744916333164,0.0469621,85129.0,85128.0,0.2320795]
[1744916333370,0.1174771,85130.0,85129.0,0.1762157]
[1744916333577,0.4782716,85134.0,85133.0,0.1174726]
[1744916334965,0.4782716,85134.0,85133.0,0.2341726]
[1744916335766,0.4782716,85134.0,85133.0,0.2291726]
[1744916335966,0.4732953,85134.0,85133.0,0.2241726]
[1744916336165,0.4732953,85134.0,85133.0,0.2191726]
[1744916336371,0.4782716,85134.0,85133.0,0.2191726]
[1744916336574,0.1174781,85129.0,85128.0,0.0567]
[1744916336768,0.1174809,85128.0,85127.0,0.1762169]
[1744916336968,0.1174809,85128.0,85127.0,0.2929169]
[1744916337268,0.1174809,85128.0,85127.0,0.3229169]
[1744916337470,0.1174809,85128.0,85127.0,0.2929169]
[1744916338164,0.4195361,85134.0,85133.0,0.1174726]
[1744916338370,0.3608,85134.0,85133.0,0.1174726]
[1744916338571,0.4782712,85134.0,85133.0,0.1174726]
[1744916338968,0.4782712,85134.0,85133.0,0.2373726]
[1744916339168,0.3608,85134.0,85133.0,0.2373726]
[1744916339365,0.1174704,85135.0,85134.0,0.1762054]
[1744916339570,0.11249559,85135.0,85134.0,0.1762054]
[1744916339777,0.10752228,85135.0,85134.0,0.2911054]
[1744916339979,0.10255046,85135.0,85134.0,0.1199]
[1744916340175,0.0587402,85128.0,85127.0,0.176218]
[1744916340480,0.0587402,85128.0,85127.0,0.196218]
[1744916340875,0.0587402,85128.0,85127.0,0.313618]
[1744916341571,0.0587402,85128.0,85127.0,0.293618]
[1744916343176,0.0587402,85128.0,85127.0,0.288618]
[1744916343370,0.1188402,85128.0,85127.0,0.288618]
[1744916343565,0.11386988,85128.0,85127.0,0.283618]
[1744916344271,0.17436988,85128.0,85127.0,0.278618]
[1744916344479,0.17436988,85128.0,85127.0,0.288618]
[1744916345070,0.0601,85128.0,85127.0,0.288618]
[1744916346274,0.1775795,85128.0,85127.0,0.288618]
[1744916346978,0.1775795,85128.0,85127.0,0.1761398]
[1744916347180,0.1775795,85128.0,85127.0,0.0587398]